[Event "8th Amsterdam Summer Open-A 2018"]
[Site "Amsterdam"]
[Date "2018.07.09"]
[Round "3"]
[White "Pham, Khoi"]
[Black "Hildenbrand, Peter"]
[Result "*"]
[ECO "C41"]
[WhiteElo "2037"]
[BlackElo "2226"]
[Annotator "NA"]
[PlyCount "85"]
[EventDate "2018.07.07"]
[EventType "swiss"]
[EventCountry "NED"]
[SourceTitle "playchess.com"]
[Source "ChessBase"]
[SourceQuality "1"]
[TimeControl "40/5400+30:1800+30"]

1. e4 {[%emt 0:00:00]} d6 {[%emt 0:00:00]} 2. d4 {[%emt 0:00:00]} Nf6 {[%emt 0:00:00]} 3. Nc3 {[%emt 0:00:00]} e5 {[%emt 0:00:00]} 4. Nf3 {[%emt 0:00:08]} Nbd7 {[%emt 0:00:00]} 5. Bc4 {[%emt 0:00:12]} Be7 {[%emt 0:00:07]} 6. O-O {[%emt 0:00:42]} c6 {[%emt 0:00:14]} 7. a4 {[%emt 0:00:15]} Qc7 {[%emt 0:00:26]} 8. Re1 {[%emt 0:00:55]} h6 {[%emt 0:00:11] LiveBook: 51 Games C41: Philidor Defence} 9. Bb3 {[%emt 0:05:22]} (9. Qd3 exd4 10. Qxd4 Ne5 11. Nxe5 dxe5 {1-0 (11) Fedorchuk,S (2665)-Rapport,R (2704) Palic 2014}) 9... Nf8 {[%emt 0:01:11]} 10. Qe2 {[%emt 0:03:00]} Be6 $146 {[%emt 0:09:12]} ({Predecessor:} 10... g5 11. Qc4 Bd8 12. Be3 Ng6 13. dxe5 dxe5 14. Bc5 Be6 15. Qf1 Bxb3 16. cxb3 {½-½ (58) Thiel,T (2323)-Schmid,R (2249) Verden an der Aller 2014}) 11. d5 {[%emt 0:01:43]} cxd5 {[%emt 0:01:11]} 12. exd5 {[%emt 0:00:31]} Bd7 {[%emt 0:00:49]} 13. Nd2 {[%emt 0:03:25]} Ng6 {[%emt 0:00:56]} 14. Nc4 {[%emt 0:01:12]} O-O {[%emt 0:01:05]} 15. Bd2 {[%emt 0:03:25]} Bg4 {[%emt 0:12:50]} 16. f3 {[%emt 0:04:13]} Bd7 {[%emt 0:05:20]} 17. Kh1 {[%emt 0:02:41]} Kh7 {[%emt 0:00:56]} 18. Qd3 {[%emt 0:01:48]} Kh8 {[%emt 0:02:35]} 19. Be3 {[%emt 0:09:49]} b6 {[%emt 0:03:06]} 20. Na3 {[%emt 0:05:33]} Rac8 {[%emt 0:11:04]} 21. Bc4 {[%emt 0:01:38]} e4 {[%emt 0:01:22]} 22. Qf1 {[%emt 0:03:55]} exf3 {[%emt 0:00:33]} 23. gxf3 {[%emt 0:00:29]} Rce8 {[%emt 0:05:08]} 24. Nab5 {[%emt 0:02:00]} Qb8 {[%emt 0:01:08]} 25. Nd4 {[%emt 0:00:40]} Ne5 {[%emt 0:02:39]} 26. Bb5 {[%emt 0:02:21]} Qc7 {[%emt 0:04:53]} 27. Bf4 {[%emt 0:04:24]} Ng6 {[%emt 0:00:19]} 28. Bg3 {[%emt 0:01:28]} Nh5 $11 {[%emt 0:00:57]} 29. Nc6 {[%emt 0:06:24]} Bf6 {[%emt 0:04:21]} 30. Qc4 {[%emt 0:06:07]} Bf5 {[%emt 0:14:02]} 31. Ba6 {[%emt 0:11:37]} Nxg3+ {[%emt 0:00:59]} 32. hxg3 {[%emt 0:00:12]} Qd7 {[%emt 0:02:06]} 33. g4 {[%emt 0:02:25]} Bxc2 {[%emt 0:00:09]} 34. Nb5 {[%emt 0:00:21]} Bxb2 {[%emt 0:00:30]} 35. Rxe8 {[%emt 0:01:12]} Rxe8 {[%emt 0:02:39]} 36. Rf1 {[%emt 0:02:13]} Be4 {[%emt 0:00:24]} 37. fxe4 {[%emt 0:03:05]} Qxg4 {[%emt 0:00:12]} 38. Qc2 {[%emt 0:00:57]} Rxe4 {[%emt 0:00:32]} 39. Nxd6 {[%emt 0:00:32]} Qh3+ {[%emt 0:00:22]} 40. Qh2 {[%emt 0:00:18]} Qe3 {[%emt 0:07:32]} 41. Nxe4 {[%emt 0:31:27]} Qxe4+ {[%emt 0:30:02]} 42. Qg2 {[%emt 0:01:00]} Qh4+ {[%emt 0:00:27]} 43. Kg1 {[%emt 0:01:02]} *

[Event "8th Amsterdam Summer Open-A 2018"]
[Site "Amsterdam"]
[Date "2018.07.10"]
[Round "4"]
[White "Lai, Hing Ting"]
[Black "Vroombout, Enrico"]
[Result "1-0"]
[ECO "E69"]
[WhiteElo "2447"]
[BlackElo "2132"]
[Annotator "NA"]
[PlyCount "75"]
[EventDate "2018.07.07"]
[EventType "swiss"]
[EventCountry "NED"]
[SourceTitle "playchess.com"]
[Source "ChessBase"]
[SourceQuality "1"]
[TimeControl "40/5400+30:1800+30"]

1. d4 {[%emt 0:00:00]} Nf6 {[%emt 0:00:00]} 2. Nf3 {[%emt 0:00:00]} g6 {[%emt 0:00:00]} 3. c4 {[%emt 0:00:00]} Bg7 {[%emt 0:00:03]} 4. g3 {[%emt 0:00:00]} d6 {[%emt 0:00:55]} 5. Bg2 {[%emt 0:00:00]} O-O {[%emt 0:00:10]} 6. O-O {[%emt 0:00:05]} Nbd7 {[%emt 0:00:19]} 7. Nc3 {[%emt 0:00:08]} e5 {[%emt 0:00:17]} 8. e4 {[%emt 0:00:07]} c6 {[%emt 0:00:23]} 9. h3 {[%emt 0:00:22]} Re8 {[%emt 0:00:12]} 10. Be3 {[%emt 0:01:11]} exd4 {[%emt 0:01:33]} 11. Nxd4 {[%emt 0:00:11]} Nc5 {[%emt 0:00:23]} 12. Qc2 {[%emt 0:00:07]} a5 {[%emt 0:00:52]} 13. Rad1 {[%emt 0:07:11]} Nfd7 {[%emt 0:00:36]} 14. f4 {[%emt 0:02:01]} Qe7 {[%emt 0:17:30]} 15. Bf2 {[%emt 0:02:45]} h5 {[%emt 0:00:36]} 16. Rfe1 {[%emt 0:02:09]} a4 {[%emt 0:18:34] LiveBook: 6 Games} 17. Nf3 $16 {[%emt 0:04:13]} a3 {[%emt 0:11:21]} 18. b3 {[%emt 0:00:39]} Na6 {[%emt 0:05:59]} 19. Bd4 {[%emt 0:05:45]} Nb4 {[%emt 0:07:55]} 20. Qd2 {[%emt 0:02:53]} Bxd4+ {[%emt 0:03:25]} 21. Nxd4 {[%emt 0:00:05]} h4 {[%emt 0:11:20]} 22. g4 {[%emt 0:02:48]} Qd8 {[%emt 0:01:42]} 23. Nf3 {[%emt 0:01:23]} Nc5 {[%emt 0:02:37]} 24. Re3 {[%emt 0:05:58]} Ne6 {[%emt 0:03:05]} 25. e5 {[%emt 0:03:04]} dxe5 {[%emt 0:05:35]} 26. Qf2 {[%emt 0:01:30]} Qb6 {[%emt 0:02:04]} 27. c5 {[%emt 0:02:01]} Nxc5 {[%emt 0:01:15]} 28. Nxe5 {[%emt 0:00:03]} Nd7 {[%emt 0:03:43]} 29. Nc4 {[%emt 0:02:44]} Qd8 {[%emt 0:00:02]} 30. Rf3 {[%emt 0:02:12]} Qe7 {[%emt 0:00:27]} 31. Nd6 {[%emt 0:03:10]} Rd8 {[%emt 0:01:53]} 32. Re3 {[%emt 0:00:25]} Qf8 {[%emt 0:00:03]} 33. Qxh4 {[%emt 0:00:20]} Nc5 {[%emt 0:00:22]} 34. f5 {[%emt 0:01:56]} Rxd6 {[%emt 0:01:16]} 35. Rxd6 {[%emt 0:00:07]} Qxd6 {[%emt 0:00:21]} 36. Re8+ {[%emt 0:00:04]} Qf8 {[%emt 0:00:03]} 37. Rxf8+ {[%emt 0:00:49]} Kxf8 {[%emt 0:00:03]} 38. Qd8+ {[%emt 0:00:09]} 1-0

[Event "8th Amsterdam Summer Open-A 2018"]
[Site "Amsterdam"]
[Date "2018.07.10"]
[Round "4"]
[White "Kollen, Zyon"]
[Black "Pham, Khoi"]
[Result "1/2-1/2"]
[ECO "B80"]
[WhiteElo "2313"]
[BlackElo "2037"]
[Annotator "NA"]
[PlyCount "69"]
[EventDate "2018.07.07"]
[EventType "swiss"]
[EventCountry "NED"]
[SourceTitle "playchess.com"]
[Source "ChessBase"]
[SourceQuality "1"]
[TimeControl "40/5400+30:1800+30"]

1. e4 {[%emt 0:00:00]} c5 {[%emt 0:00:00]} 2. Nf3 {[%emt 0:00:00]} d6 {[%emt 0:00:00]} 3. d4 {[%emt 0:00:00]} cxd4 {[%emt 0:00:00]} 4. Nxd4 {[%emt 0:00:00]} Nf6 {[%emt 0:00:00]} 5. Nc3 {[%emt 0:00:00]} a6 {[%emt 0:00:01]} 6. Be3 {[%emt 0:00:07]} e6 {[%emt 0:00:10]} 7. Qd2 {[%emt 0:00:05]} b5 {[%emt 0:00:29]} 8. f3 {[%emt 0:00:06]} Nbd7 {[%emt 0:00:07]} 9. g4 {[%emt 0:00:07]} Nb6 {[%emt 0:00:04]} 10. O-O-O {[%emt 0:00:17]} Bb7 {[%emt 0:00:22]} 11. Bd3 {[%emt 0:05:04]} Rc8 {[%emt 0:00:17]} 12. Kb1 {[%emt 0:00:29]} Nfd7 {[%emt 0:02:49]} 13. g5 {[%emt 0:06:29] LiveBook: 52 Games} d5 {[%emt 0:03:20] B80: Sicilian Scheveningen: 6 g3 and 6 Be3, including English Attack} (13... Ne5 $11 14. Qe1 Be7 15. h4 d5 16. exd5 Nxd3 17. Rxd3 Nxd5 {½-½ (17) Korneev,O (2613)-Corrales Jimenez,F (2586) Bergamo 2009}) 14. exd5 {[%emt 0:12:29]} (14. g6 $5) 14... Nxd5 {[%emt 0:01:22]} 15. Nxd5 {[%emt 0:02:29]} Bxd5 {[%emt 0:00:07]} 16. Be4 {[%emt 0:04:55]} Bxe4 {[%emt 0:04:22]} 17. fxe4 {[%emt 0:02:09]} Be7 {[%emt 0:00:19]} 18. h4 {[%emt 0:08:43]} Ne5 $146 {[%emt 0:12:00]} ({Predecessor:} 18... Qc7 19. Qg2 Nc5 {1-0 (38) Zhu,J (2024)-Antova,G (2253) Khanty-Mansiysk 2016}) 19. Qg2 $16 {[%emt 0:17:52]} Qc7 {[%emt 0:18:34]} 20. Bf4 {[%emt 0:16:09]} Bd6 {[%emt 0:00:40]} 21. h5 {[%emt 0:07:23]} Nc4 {[%emt 0:11:38]} 22. Bxd6 {[%emt 0:03:21]} Qxd6 {[%emt 0:00:25]} 23. Qf3 {[%emt 0:03:15]} O-O {[%emt 0:02:21]} 24. h6 {[%emt 0:00:51]} g6 {[%emt 0:02:46]} 25. c3 {[%emt 0:03:18]} Qe5 {[%emt 0:01:05]} 26. Rhg1 {[%emt 0:04:48]} f6 {[%emt 0:01:38]} 27. Qe2 {[%emt 0:00:00]} fxg5 {[%emt 0:10:38]} 28. Nf3 {[%emt 0:00:16]} Qf6 {[%emt 0:00:30]} 29. Nxg5 {[%emt 0:00:28]} Rcd8 {[%emt 0:01:06]} 30. Rxd8 {[%emt 0:01:55]} Rxd8 {[%emt 0:00:15]} 31. Qg4 {[%emt 0:00:34]} Rd6 {[%emt 0:02:25]} 32. Qg3 {[%emt 0:00:41]} Qd8 {[%emt 0:01:57]} 33. Qg4 {[%emt 0:00:56]} Qf6 {[%emt 0:02:48]} 34. Qg3 {[%emt 0:00:19]} Qd8 {[%emt 0:00:37]} 35. Qg4 {[%emt 0:00:12]} 1/2-1/2

[Event "8th Amsterdam Summer Open-A 2018"]
[Site "Amsterdam"]
[Date "2018.07.10"]
[Round "4"]
[White "Hildenbrand, Peter"]
[Black "Jansen, Dirk Norbert"]
[Result "1-0"]
[ECO "D00"]
[WhiteElo "2226"]
[BlackElo "2190"]
[Annotator "NA"]
[PlyCount "51"]
[EventDate "2018.07.07"]
[EventType "swiss"]
[EventCountry "NED"]
[SourceTitle "playchess.com"]
[Source "ChessBase"]
[SourceQuality "1"]
[TimeControl "40/5400+30:1800+30"]

1. d4 {[%emt 0:00:00]} Nf6 {[%emt 0:00:00]} 2. Bf4 {[%emt 0:00:00]} d5 {[%emt 0:00:16]} 3. e3 {[%emt 0:00:00]} c5 {[%emt 0:01:04]} 4. Nc3 {[%emt 0:00:38]} a6 {[%emt 0:01:14]} 5. dxc5 {[%emt 0:01:13]} Nc6 {[%emt 0:01:21]} 6. a3 {[%emt 0:00:21]} e5 {[%emt 0:25:42] LiveBook: 5 Games} 7. Bg5 {[%emt 0:00:07]} Bxc5 {[%emt 0:02:06]} (7... Be6 $11) 8. Bxf6 $1 {[%emt 0:00:12]} Qxf6 {[%emt 0:00:10]} 9. Nxd5 {[%emt 0:01:04]} Qd6 {[%emt 0:03:12]} 10. b4 {[%emt 0:03:48]} Ba7 {[%emt 0:00:28]} 11. c4 {[%emt 0:10:10]} O-O {[%emt 0:03:37]} 12. Qc2 $11 {[%emt 0:04:53]} (12. Ne2 $16) 12... Be6 {[%emt 0:16:43]} 13. Rd1 {[%emt 0:00:07]} Bxd5 {[%emt 0:01:37]} 14. Rxd5 {[%emt 0:10:43]} Qe6 {[%emt 0:06:54]} 15. Nf3 {[%emt 0:00:51]} h6 {[%emt 0:01:40]} 16. Be2 {[%emt 0:01:10]} Rac8 {[%emt 0:02:18]} 17. Rd1 {[%emt 0:04:01]} e4 {[%emt 0:07:53]} 18. Nd2 {[%emt 0:01:43]} f5 {[%emt 0:03:21]} 19. c5 {[%emt 0:02:36]} Ne5 {[%emt 0:00:16]} 20. Bc4 {[%emt 0:03:17]} Nxc4 {[%emt 0:00:14]} 21. Qxc4 {[%emt 0:00:07]} Kf7 {[%emt 0:02:41]} 22. Nxe4 {[%emt 0:30:43]} fxe4 {[%emt 0:02:03]} 23. Rd7+ {[%emt 0:00:02]} Kf6 {[%emt 0:00:07]} 24. Qd4+ {[%emt 0:00:09]} Kg5 {[%emt 0:04:43]} 25. h4+ {[%emt 0:00:59]} Kh5 {[%emt 0:01:54]} 26. Qd1+ {[%emt 0:04:06]} 1-0

[Event "8th Amsterdam Summer Open-A 2018"]
[Site "Amsterdam"]
[Date "2018.07.10"]
[Round "4"]
[White "De Jong, Tom"]
[Black "Mijnheer, Peter"]
[Result "1/2-1/2"]
[ECO "C84"]
[WhiteElo "2201"]
[BlackElo "2106"]
[Annotator "NA"]
[PlyCount "50"]
[EventDate "2018.07.07"]
[EventType "swiss"]
[EventCountry "NED"]
[SourceTitle "playchess.com"]
[Source "ChessBase"]
[SourceQuality "1"]
[TimeControl "40/5400+30:1800+30"]

1. e4 {[%emt 0:00:00]} e5 {[%emt 0:00:00]} 2. Nf3 {[%emt 0:00:00]} Nc6 {[%emt 0:00:00]} 3. Bb5 {[%emt 0:00:52]} a6 {[%emt 0:00:00]} 4. Ba4 {[%emt 0:00:06]} Nf6 {[%emt 0:00:00]} 5. O-O {[%emt 0:02:14]} Be7 {[%emt 0:00:00]} 6. d3 {[%emt 0:00:40]} d6 {[%emt 0:00:58]} 7. c3 {[%emt 0:03:20]} O-O {[%emt 0:01:32]} 8. Re1 {[%emt 0:01:27]} b5 {[%emt 0:00:32]} 9. Bc2 {[%emt 0:00:31]} Re8 {[%emt 0:02:00]} 10. Nbd2 {[%emt 0:00:45]} Bf8 {[%emt 0:00:31]} 11. Nf1 {[%emt 0:05:26]} h6 {[%emt 0:05:51]} 12. d4 {[%emt 0:07:01]} Bb7 {[%emt 0:34:02]} 13. Ng3 {[%emt 0:08:19]} Qd7 {[%emt 0:04:57]} 14. h3 {[%emt 0:01:48]} Rad8 {[%emt 0:02:45]} 15. d5 {[%emt 0:02:49]} Na5 {[%emt 0:08:22]} 16. a4 {[%emt 0:10:25]} Ra8 {[%emt 0:01:07]} 17. Nh4 {[%emt 0:02:12]} c6 {[%emt 0:00:39]} 18. dxc6 {[%emt 0:02:08]} Bxc6 {[%emt 0:01:04]} 19. Qf3 {[%emt 0:01:41]} Re6 {[%emt 0:01:55]} 20. axb5 {[%emt 0:04:51]} axb5 {[%emt 0:00:28]} 21. Nhf5 {[%emt 0:04:08]} Qb7 {[%emt 0:07:41]} 22. Ne3 {[%emt 0:09:44]} Nc4 {[%emt 0:02:24]} 23. Rxa8 {[%emt 0:01:02]} Qxa8 {[%emt 0:00:02]} 24. Nxc4 {[%emt 0:07:58]} bxc4 {[%emt 0:00:22]} 25. Qe2 {[%emt 0:06:32]} d5 {[%emt 0:05:43]} 1/2-1/2

[Event "8th Amsterdam Summer Open-A 2018"]
[Site "Amsterdam"]
[Date "2018.07.10"]
[Round "4"]
[White "Kohler, Aran"]
[Black "Theulings, Paul-Peter"]
[Result "1-0"]
[ECO "B02"]
[WhiteElo "2175"]
[BlackElo "2088"]
[Annotator "NA"]
[PlyCount "51"]
[EventDate "2018.07.07"]
[EventType "swiss"]
[EventCountry "NED"]
[SourceTitle "playchess.com"]
[Source "ChessBase"]
[SourceQuality "1"]
[TimeControl "40/5400+30:1800+30"]

1. e4 {[%emt 0:00:00]} Nf6 {[%emt 0:00:00]} 2. e5 {[%emt 0:00:19]} Nd5 {[%emt 0:00:00]} 3. Nc3 {[%emt 0:00:13]} Nxc3 {[%emt 0:00:22]} 4. dxc3 {[%emt 0:00:09]} Nc6 {[%emt 0:01:05]} 5. Nf3 {[%emt 0:01:46]} d6 {[%emt 0:00:19]} 6. Bf4 {[%emt 0:01:20]} dxe5 {[%emt 0:03:06]} 7. Qxd8+ {[%emt 0:01:51]} Nxd8 {[%emt 0:00:13]} 8. Bxe5 {[%emt 0:00:18]} c6 {[%emt 0:00:49] LiveBook: 8 Partien} 9. O-O-O {[%emt 0:00:39]} f6 {[%emt 0:01:35]} 10. Bc7 {[%emt 0:05:28]} Nf7 {[%emt 0:03:37]} 11. Bc4 {[%emt 0:03:20]} e5 {[%emt 0:02:50]} 12. Rhe1 {[%emt 0:08:09]} Bc5 {[%emt 0:13:38]} 13. Bxe5 {[%emt 0:02:39]} O-O {[%emt 0:16:50]} 14. Bd6 {[%emt 0:00:40]} Bxd6 {[%emt 0:00:23]} 15. Rxd6 $18 {[%emt 0:00:05]} Bg4 {[%emt 0:13:57]} 16. Re7 {[%emt 0:00:18]} b5 {[%emt 0:00:23]} 17. Bb3 {[%emt 0:04:02]} c5 {[%emt 0:01:39]} 18. Bd5 {[%emt 0:00:17]} Bh5 {[%emt 0:06:28]} 19. Rdd7 {[%emt 0:00:20]} Rab8 {[%emt 0:12:01]} 20. Nh4 {[%emt 0:00:51]} Rbe8 {[%emt 0:03:41]} 21. f3 {[%emt 0:04:22]} Rxe7 {[%emt 0:01:20]} 22. Rxe7 {[%emt 0:00:08]} Rd8 {[%emt 0:01:30]} 23. Nf5 {[%emt 0:06:45]} a5 {[%emt 0:04:31]} 24. Rb7 {[%emt 0:04:58]} b4 {[%emt 0:06:54]} 25. cxb4 {[%emt 0:08:42]} cxb4 {[%emt 0:00:12]} 26. Nd6 {[%emt 0:00:57]} 1-0

[Event "8th Amsterdam Summer Open-A 2018"]
[Site "Amsterdam"]
[Date "2018.07.10"]
[Round "4"]
[White "Cornelisse, John"]
[Black "Elgersma, Onno"]
[Result "1-0"]
[ECO "E53"]
[WhiteElo "2132"]
[BlackElo "2150"]
[Annotator "NA"]
[PlyCount "63"]
[EventDate "2018.07.07"]
[EventType "swiss"]
[EventCountry "NED"]
[SourceTitle "playchess.com"]
[Source "ChessBase"]
[SourceQuality "1"]
[TimeControl "40/5400+30:1800+30"]

1. d4 {[%emt 18:29:50]} Nf6 {[%emt 0:00:21]} 2. c4 {[%emt 0:00:10]} e6 {[%emt 0:00:25]} 3. Nc3 {[%emt 0:00:10]} Bb4 {[%emt 0:00:23]} 4. e3 {[%emt 0:00:14]} O-O {[%emt 0:00:55]} 5. Bd3 {[%emt 0:00:12]} c5 {[%emt 0:02:50]} 6. Nf3 {[%emt 0:00:36]} d5 {[%emt 0:01:27]} 7. O-O {[%emt 0:00:33]} b6 {[%emt 0:08:38]} 8. cxd5 {[%emt 0:07:51]} exd5 $11 {[%emt 0:01:42] LiveBook: 82 Partien} 9. Ne5 {[%emt 0:06:18]} Ba6 {[%emt 0:14:07]} 10. Ne2 {[%emt 0:34:58]} Qe8 {[%emt 0:24:20]} 11. a3 {[%emt 0:04:21]} Ba5 {[%emt 0:02:35]} 12. b4 {[%emt 0:03:15]} cxb4 {[%emt 0:19:48]} 13. axb4 {[%emt 0:00:44]} Bxb4 {[%emt 0:00:17]} 14. Bxa6 {[%emt 0:00:06]} Nxa6 {[%emt 0:01:30]} 15. Rxa6 {[%emt 0:00:06]} Ba5 {[%emt 0:00:04]} 16. Rxa5 {[%emt 0:00:55]} bxa5 {[%emt 0:00:06]} 17. Ba3 {[%emt 0:00:03]} Qb5 {[%emt 0:03:49]} 18. Bxf8 {[%emt 0:00:13]} Rxf8 {[%emt 0:00:04]} 19. Qd3 {[%emt 0:00:31]} Qb6 {[%emt 0:01:01]} 20. Rb1 {[%emt 0:00:11]} Qc7 {[%emt 0:00:38]} 21. Qc3 {[%emt 0:00:31]} Qd6 {[%emt 0:00:40]} 22. Qxa5 {[%emt 0:00:28]} Rb8 {[%emt 0:00:46]} 23. Rxb8+ {[%emt 0:01:01]} Qxb8 {[%emt 0:00:05]} 24. h3 {[%emt 0:00:52]} h6 {[%emt 0:01:28]} 25. Nf4 {[%emt 0:04:13]} Qb7 {[%emt 0:08:18]} 26. Qd8+ {[%emt 0:02:28]} Kh7 {[%emt 0:00:04]} 27. Qf8 {[%emt 0:00:15]} g5 {[%emt 0:01:30]} 28. Nfd3 {[%emt 0:01:43]} a5 {[%emt 0:00:51]} 29. Nxf7 {[%emt 0:06:11]} Qb1+ {[%emt 0:02:32]} 30. Kh2 {[%emt 0:00:04]} Qxd3 {[%emt 0:00:08]} 31. Qxh6+ {[%emt 0:00:04]} Kg8 {[%emt 0:00:06]} 32. Qxf6 {[%emt 0:00:04]} 1-0

[Event "8th Amsterdam Summer Open-A 2018"]
[Site "Amsterdam"]
[Date "2018.07.10"]
[Round "4"]
[White "Cornelisse, Ticho"]
[Black "Kokje, Joris"]
[Result "0-1"]
[ECO "E61"]
[WhiteElo "2074"]
[BlackElo "2242"]
[Annotator "NA"]
[PlyCount "92"]
[EventDate "2018.07.07"]
[EventType "swiss"]
[EventCountry "NED"]
[SourceTitle "playchess.com"]
[Source "ChessBase"]
[SourceQuality "1"]
[TimeControl "40/5400+30:1800+30"]

1. d4 {[%emt 0:00:00]} Nf6 {[%emt 0:00:00]} 2. c4 {[%emt 0:00:00]} g6 {[%emt 0:00:00]} 3. Nc3 {[%emt 0:00:00]} Bg7 {[%emt 0:00:00]} 4. Nf3 {[%emt 0:00:04]} O-O {[%emt 0:00:00]} 5. Bg5 {[%emt 0:03:10]} h6 {[%emt 0:03:12]} 6. Bh4 {[%emt 0:00:00]} d6 {[%emt 0:01:41]} 7. e3 {[%emt 0:00:00]} a6 {[%emt 0:02:38]} 8. Be2 {[%emt 0:05:19]} c5 {[%emt 0:08:05]} 9. O-O {[%emt 0:06:54]} cxd4 {[%emt 0:07:11]} 10. exd4 {[%emt 0:00:16]} Bf5 {[%emt 0:01:07]} 11. Qb3 {[%emt 0:06:14]} Nbd7 {[%emt 0:15:44]} 12. Rfd1 {[%emt 0:02:46]} Qc7 {[%emt 0:04:49]} 13. Rac1 {[%emt 0:02:07]} Rac8 $14 {[%emt 0:00:51]} 14. h3 {[%emt 0:13:25]} Rfe8 {[%emt 0:05:35]} 15. Bg3 {[%emt 0:06:55]} Qb6 {[%emt 0:04:26]} 16. Qxb6 {[%emt 0:12:34]} Nxb6 {[%emt 0:00:27]} 17. b3 {[%emt 0:00:04]} g5 {[%emt 0:00:30]} 18. Bd3 {[%emt 0:03:54]} Bxd3 {[%emt 0:01:46]} 19. Rxd3 {[%emt 0:00:02]} Nbd7 {[%emt 0:05:11]} 20. Re1 {[%emt 0:01:10]} Nf8 {[%emt 0:03:22]} 21. Rde3 {[%emt 0:02:02]} Ng6 {[%emt 0:00:30]} 22. Kf1 {[%emt 0:04:04]} Kf8 {[%emt 0:02:41]} 23. Bh2 {[%emt 0:04:16]} g4 {[%emt 0:08:10]} 24. Nd2 {[%emt 0:06:55]} h5 {[%emt 0:00:07]} 25. Nde4 {[%emt 0:08:10]} Nxe4 {[%emt 0:03:40]} 26. Rxe4 {[%emt 0:00:17]} f5 {[%emt 0:09:01]} 27. Re6 {[%emt 0:00:16]} Bxd4 {[%emt 0:00:13]} 28. Nd5 {[%emt 0:00:15]} Ne5 {[%emt 0:00:18]} 29. Rh6 {[%emt 0:02:51]} gxh3 {[%emt 0:00:14]} 30. gxh3 {[%emt 0:03:31]} Nf3 {[%emt 0:03:29]} 31. Rd1 {[%emt 0:00:32]} Nxh2+ {[%emt 0:03:48]} 32. Kg2 {[%emt 0:00:10]} Bg7 {[%emt 0:00:09]} 33. Rxh5 {[%emt 0:00:44]} e6 {[%emt 0:00:30]} 34. Nf4 {[%emt 0:03:33]} Kf7 {[%emt 0:00:05]} 35. Rxd6 {[%emt 0:01:48]} Be5 {[%emt 0:02:46]} 36. Rd7+ {[%emt 0:00:33]} Kf6 {[%emt 0:00:21]} 37. Nd3 {[%emt 0:01:18]} Rg8+ {[%emt 0:00:06]} 38. Kh1 {[%emt 0:00:54]} Nf3 {[%emt 0:01:59]} 39. Rh6+ {[%emt 0:00:05]} Rg6 {[%emt 0:01:04]} 40. Rxg6+ {[%emt 0:02:03]} Kxg6 {[%emt 0:00:04]} 41. Rxb7 {[%emt 0:01:35]} Kf6 {[%emt 0:03:29]} 42. Kg2 {[%emt 0:00:41]} Nd2 {[%emt 0:00:21]} 43. Nxe5 {[%emt 0:07:18]} Kxe5 {[%emt 0:00:37]} 44. f3 {[%emt 0:00:13]} Kf4 {[%emt 0:00:55]} 45. Rb6 {[%emt 0:00:05]} e5 {[%emt 0:00:36]} 46. Rxa6 {[%emt 0:00:05]} Nxf3 {[%emt 0:00:58]} 0-1

[Event "8th Amsterdam Summer Open-A 2018"]
[Site "Amsterdam"]
[Date "2018.07.10"]
[Round "4"]
[White "Bogaard, Milo"]
[Black "De Boer, Eelke"]
[Result "1/2-1/2"]
[ECO "A36"]
[WhiteElo "2073"]
[BlackElo "2317"]
[Annotator "NA"]
[PlyCount "41"]
[EventDate "2018.07.07"]
[EventType "swiss"]
[EventCountry "NED"]
[SourceTitle "playchess.com"]
[Source "ChessBase"]
[SourceQuality "1"]
[TimeControl "40/5400+30:1800+30"]

1. c4 {[%emt 0:00:00]} Nf6 {[%emt 0:00:00]} 2. g3 {[%emt 0:00:00]} g6 {[%emt 0:00:00]} 3. Bg2 {[%emt 0:00:00]} Bg7 {[%emt 0:00:00]} 4. Nc3 {[%emt 0:00:00]} O-O {[%emt 0:00:00]} 5. e4 {[%emt 0:00:01]} d6 {[%emt 0:00:28]} 6. Nge2 {[%emt 0:00:11]} c5 {[%emt 0:00:32]} 7. O-O {[%emt 0:00:16]} Nc6 {[%emt 0:00:07]} 8. d3 {[%emt 0:00:12]} Ne8 {[%emt 0:01:15]} 9. Be3 {[%emt 0:00:54]} Nd4 {[%emt 0:01:49]} 10. Qd2 {[%emt 0:07:29]} Nc7 {[%emt 0:28:15]} 11. Bh6 {[%emt 0:16:29]} Nce6 {[%emt 0:08:47]} 12. Bxg7 {[%emt 0:01:54]} Kxg7 {[%emt 0:00:07] LiveBook: 4 Games} 13. f4 $14 {[%emt 0:04:54]} Nc6 {[%emt 0:07:22]} 14. f5 {[%emt 0:12:00]} Ned4 {[%emt 0:00:14]} 15. Nxd4 {[%emt 0:20:09]} Nxd4 {[%emt 0:01:48]} 16. Nd5 {[%emt 0:00:42]} f6 {[%emt 0:06:23]} 17. Rf4 {[%emt 0:08:40]} g5 {[%emt 0:02:46]} 18. Rf2 {[%emt 0:01:32]} Rb8 {[%emt 0:06:01]} 19. b4 {[%emt 0:04:42]} b6 {[%emt 0:01:23]} 20. Rb1 {[%emt 0:03:35]} Bb7 {[%emt 0:01:22]} 21. Ne3 {[%emt 0:00:48]} 1/2-1/2

[Event "8th Amsterdam Summer Open-A 2018"]
[Site "Amsterdam"]
[Date "2018.07.10"]
[Round "4"]
[White "Spiler, Angelo"]
[Black "Grooten, Herman"]
[Result "0-1"]
[ECO "B50"]
[WhiteElo "2049"]
[BlackElo "2384"]
[Annotator "NA"]
[PlyCount "63"]
[EventDate "2018.07.07"]
[EventType "swiss"]
[EventCountry "NED"]
[SourceTitle "playchess.com"]
[Source "ChessBase"]
[SourceQuality "1"]
[TimeControl "40/5400+30:1800+30"]

1. e4 {[%emt 0:02:08]} c5 {[%emt 0:01:18]} 2. Nf3 {[%emt 0:00:00]} d6 {[%emt 0:00:07]} 3. c3 {[%emt 0:00:00]} Nf6 {[%emt 0:00:10]} 4. Qc2 {[%emt 0:00:00]} Qc7 {[%emt 0:00:39]} 5. a4 {[%emt 0:02:42]} g6 {[%emt 0:02:04]} 6. Na3 {[%emt 0:01:04]} a6 {[%emt 0:01:18]} 7. Nc4 {[%emt 0:02:08]} b6 {[%emt 0:15:12]} 8. a5 {[%emt 0:09:22]} Nbd7 {[%emt 0:06:12]} 9. axb6 {[%emt 0:06:00]} Nxb6 {[%emt 0:00:30]} 10. Nxb6 {[%emt 0:11:41]} Qxb6 {[%emt 0:00:09]} 11. Bc4 {[%emt 0:03:28]} Bg7 {[%emt 0:01:51]} 12. d3 {[%emt 0:10:41]} O-O {[%emt 0:01:26]} 13. Bg5 {[%emt 0:02:56]} Rb8 {[%emt 0:01:06]} 14. Ra2 {[%emt 0:01:08]} e6 $11 {[%emt 0:01:41]} 15. e5 {[%emt 0:04:41]} dxe5 {[%emt 0:04:12]} 16. Bxf6 {[%emt 0:03:35]} Bxf6 {[%emt 0:00:13]} 17. O-O {[%emt 0:01:38]} Bb7 {[%emt 0:00:34]} 18. Nd2 {[%emt 0:00:44]} Qc6 {[%emt 0:01:09]} 19. f3 {[%emt 0:00:36]} Bd8 {[%emt 0:04:11]} 20. Rfa1 {[%emt 0:01:07]} Ra8 {[%emt 0:03:38]} 21. Nb3 {[%emt 0:01:40]} Qd6 {[%emt 0:03:02]} 22. Qe2 {[%emt 0:04:22]} Bc7 {[%emt 0:01:40]} 23. g3 {[%emt 0:02:28]} Rfb8 {[%emt 0:03:39]} 24. Qe3 {[%emt 0:01:44]} Bb6 {[%emt 0:04:29]} 25. Re1 {[%emt 0:01:52]} f6 {[%emt 0:01:30]} 26. Rea1 {[%emt 0:04:37]} Kg7 {[%emt 0:00:53]} 27. Kg2 {[%emt 0:00:43]} g5 {[%emt 0:02:09]} 28. Nd2 {[%emt 0:01:00]} a5 {[%emt 0:02:36]} 29. Ne4 {[%emt 0:02:51]} Qe7 {[%emt 0:00:15]} 30. Bb5 {[%emt 0:04:46]} g4 {[%emt 0:00:48]} 31. fxg4 {[%emt 0:03:59]} f5 {[%emt 0:01:15]} 32. Kg1 {[%emt 0:01:45]} 0-1